fUST/lending_fUST_20241113
["ID","MTS","AMOUNT","RATE_DAILY","PERIOD"]
[342134118,1731499839292,-500.0,0.00019797,2]
[342134119,1731499839302,-522.48768946,0.00019797,2]
[342134120,1731499839311,-500.0,0.00019797,2]
[342134121,1731499839321,-500.0,0.00019797,2]
[342134122,1731499839330,-500.0,0.00019797,2]
[342134123,1731499839340,-500.0,0.00019797,2]
[342134124,1731499839351,-500.0,0.00019797,2]
[342134125,1731499839361,-500.0,0.00019797,2]
[342134126,1731499839370,-500.0,0.00019797,2]
[342134127,1731499839386,-500.0,0.00019797,2]
[342134128,1731499839396,-500.0,0.00019797,2]
[342134129,1731499839405,-500.0,0.00019797,2]
[342134130,1731499839414,-500.0,0.00019797,2]
[342134131,1731499839423,-500.0,0.00019797,2]
[342134132,1731499839433,-500.0,0.00019797,2]
[342134133,1731499839443,-500.0,0.00019797,2]
[342134134,1731499839452,-500.0,0.00019797,2]
[342134135,1731499839463,-500.0,0.00019797,2]
[342134136,1731499839474,-500.0,0.00019797,2]
[342134137,1731499839484,-500.0,0.00019797,2]
[342134138,1731499839493,-500.0,0.00019797,2]
[342134139,1731499839503,-500.0,0.00019797,2]
[342134140,1731499839512,-500.0,0.00019797,2]
[342134141,1731499839521,-517.63938916,0.00019797,2]
[342134142,1731499839530,-500.0,0.00019797,2]
[342134143,1731499839540,-500.0,0.00019797,2]
[342134144,1731499839549,-501.42561345,0.00019797,2]
[342134145,1731499839558,-500.0,0.00019797,2]
[342134146,1731499839567,-500.0,0.00019797,2]
[342134147,1731499839577,-600.71801558,0.00019797,2]
[342134148,1731499839586,-589.23617125,0.00019797,2]
[342134149,1731499839595,-500.0,0.00019797,2]
[342134150,1731499839604,-510.77137496,0.00019797,2]
[342134151,1731499839613,-512.94279719,0.00019797,2]
[342134152,1731499839622,-500.0,0.00019797,2]
[342134155,1731499839633,-500.0,0.00019797,2]
[342134157,1731499839642,-500.0,0.00019797,2]
[342134158,1731499839651,-514.25,0.00019797,2]
[342134160,1731499839661,-500.0,0.00019797,2]
[342134162,1731499839670,-500.0,0.00019797,2]
[342134163,1731499839679,-500.0,0.00019797,2]
[342134164,1731499839688,-500.0,0.00019797,2]
[342134165,1731499839697,-500.0,0.00019797,2]
[342134166,1731499839707,-504.05583103,0.00019797,2]
[342134169,1731499839717,-311.38000751,0.00019797,2]
[342134171,1731499839727,-500.0,0.00019797,2]
[342134173,1731499839736,-500.0,0.00019797,2]
[342134175,1731499839746,-558.30669702,0.00019797,2]
[342134177,1731499839755,-500.0,0.00019797,2]
[342134179,1731499839765,-500.0,0.00019797,2]
[342134181,1731499839774,-501.4153915,0.00019797,2]
[342134183,1731499839783,-831.42,0.00019797,2]
[342134185,1731499839792,-500.0,0.00019797,2]
[342134187,1731499839802,-500.0,0.00019797,2]
[342134189,1731499839811,-500.0,0.00019797,2]
[342134191,1731499839820,-500.0,0.00019797,2]
[342134193,1731499839829,-506.47766769,0.00019797,2]
[342134195,1731499839838,-500.3426693,0.00019797,2]
[342134197,1731499839848,-500.0,0.00019797,2]
[342134198,1731499839857,-501.670056,0.00019797,2]
[342134201,1731499839866,-500.0,0.00019797,2]
[342134202,1731499839875,-500.0,0.00019797,2]
[342134205,1731499839886,-500.0,0.00019797,2]
[342134207,1731499839895,-500.0,0.00019797,2]
[342134209,1731499839904,-500.0,0.00019797,2]
[342134211,1731499839913,-500.0,0.00019797,2]
[342134213,1731499839922,-500.0,0.00019797,2]
[342134215,1731499839932,-500.17454218,0.00019797,2]
[342134217,1731499839942,-500.0,0.00019797,2]
[342134219,1731499839952,-200.0,0.00019797,2]
[342134221,1731499839961,-514.02557515,0.00019797,2]
[342134223,1731499839970,-500.0,0.00019797,2]
[342134225,1731499839979,-500.0,0.00019797,2]
[342134227,1731499839988,-500.0,0.00019797,2]
[342134229,1731499839998,-534.03755047,0.00019797,2]
[342134231,1731499840007,-500.0,0.00019797,2]
[342134233,1731499840017,-500.0,0.00019797,2]
[342134235,1731499840026,-523.42,0.00019797,2]
[342134237,1731499840035,-500.0,0.00019797,2]
[342134239,1731499840045,-500.0,0.00019797,2]
[342134241,1731499840054,-198.55498429,0.00019797,2]
[342134243,1731499840063,-500.0,0.00019797,2]
[342134245,1731499840072,-500.0,0.00019797,2]
[342134248,1731499840082,-500.0,0.00019797,2]
[342134250,1731499840091,-500.0,0.00019797,2]
[342134252,1731499840100,-500.0,0.00019797,2]
[342134254,1731499840110,-500.0,0.00019797,2]
[342134256,1731499840119,-500.0,0.00019797,2]
[342134258,1731499840128,-500.0,0.00019797,2]
[342134260,1731499840137,-501.24881999,0.00019797,2]
[342134262,1731499840147,-500.0,0.00019797,2]
[342134264,1731499840156,-500.0,0.00019797,2]
[342134266,1731499840166,-500.0,0.00019797,2]
[342134268,1731499840176,-700.85,0.00019797,2]
[342134270,1731499840185,-500.0,0.00019797,2]
[342134273,1731499840195,-500.0,0.00019797,2]
[342134276,1731499840205,-500.0,0.00019797,2]
[342134278,1731499840214,-500.0,0.00019797,2]
[342134280,1731499840223,-500.0,0.00019797,2]
[342134282,1731499840233,-500.0,0.00019797,2]
[342134284,1731499840242,-500.0,0.00019797,2]
[342134286,1731499840251,-500.0,0.00019797,2]
[342134288,1731499840261,-500.0,0.00019797,2]
[342134290,1731499840270,-500.0,0.00019797,2]
[342134292,1731499840280,-500.0,0.00019797,2]
[342134294,1731499840289,-505.18545115,0.00019797,2]
[342134296,1731499840298,-500.0,0.00019797,2]
[342134298,1731499840307,-500.0,0.00019797,2]
[342134300,1731499840317,-500.0,0.00019797,2]
[342134302,1731499840326,-500.0,0.00019797,2]
[342134304,1731499840336,-500.0,0.00019797,2]
[342134306,1731499840345,-500.0,0.00019797,2]
[342134308,1731499840354,-500.0,0.00019797,2]
[342134310,1731499840364,-500.0,0.00019797,2]
[342134312,1731499840374,-500.0,0.00019797,2]
[342134314,1731499840390,-500.0,0.00019797,2]
[342134316,1731499840399,-500.0,0.00019797,2]
[342134318,1731499840408,-500.0,0.00019797,2]
[342134320,1731499840417,-500.0,0.00019797,2]
[342134322,1731499840428,-500.0,0.00019797,2]
[342134324,1731499840437,-500.0,0.00019797,2]
[342134326,1731499840451,-500.0,0.00019797,2]
[342134328,1731499840462,-500.0,0.00019797,2]
[342134330,1731499840472,-500.0,0.00019797,2]
[342134332,1731499840481,-500.0,0.00019797,2]
[342134334,1731499840490,-500.0,0.00019797,2]
[342134336,1731499840501,-500.0,0.00019797,2]
[342134339,1731499840510,-500.0,0.00019797,2]
[342134340,1731499840519,-500.0,0.00019797,2]
[342134343,1731499840529,-500.0,0.00019797,2]
[342134344,1731499840542,-200.03510804,0.00019797,2]
[342134346,1731499840552,-2334.98,0.00019797,2]
[342134348,1731499840561,-500.0,0.00019797,2]
[342134351,1731499840572,-557.16681525,0.00019797,2]
[342134353,1731499840582,-500.0,0.00019797,2]
[342134355,1731499840591,-500.0,0.00019797,2]
[342134357,1731499840600,-506.62969827,0.00019797,2]
[342134359,1731499840609,-500.0,0.00019797,2]
[342134360,1731499840619,-502.26509102,0.00019797,2]
[342134363,1731499840628,-500.0,0.00019797,2]
[342134365,1731499840638,-511.4941712,0.00019797,2]
[342134367,1731499840647,-500.0,0.00019797,2]
[342134368,1731499840657,-500.0,0.00019797,2]
[342134370,1731499840666,-500.0,0.00019797,2]
[342134372,1731499840675,-565.83,0.00019797,2]
[342134374,1731499840684,-500.0,0.00019797,2]
[342134376,1731499840693,-500.0,0.00019797,2]
[342134378,1731499840703,-500.0,0.00019797,2]
[342134380,1731499840712,-500.0,0.00019797,2]
[342134382,1731499840721,-500.0,0.00019797,2]
[342134384,1731499840730,-500.0,0.00019797,2]
[342134386,1731499840739,-527.29729076,0.00019797,2]
[342134388,1731499840749,-500.0,0.00019797,2]
[342134390,1731499840758,-500.0,0.00019797,2]
[342134392,1731499840768,-590.92,0.00019797,2]
[342134394,1731499840777,-500.0,0.00019797,2]
[342134397,1731499840787,-553.23312932,0.00019797,2]
[342134399,1731499840796,-500.0,0.00019797,2]
[342134401,1731499840806,-783.61,0.00019797,2]
[342134403,1731499840815,-500.0,0.00019797,2]
[342134404,1731499840824,-500.0,0.00019797,2]
[342134407,1731499840834,-500.0,0.00019797,2]
[342134409,1731499840843,-500.0,0.00019797,2]
[342134411,1731499840852,-500.0,0.00019797,2]
[342134413,1731499840862,-3561.14,0.00019797,2]
[342134415,1731499840872,-500.0,0.00019797,2]
[342134417,1731499840881,-500.0,0.00019797,2]
[342134419,1731499840890,-500.0,0.00019797,2]
[342134421,1731499840899,-500.0,0.00019797,2]
[342134423,1731499840908,-500.0,0.00019797,2]
[342134425,1731499840918,-592.05162823,0.00019797,2]
[342134427,1731499840927,-520.91951705,0.00019797,2]
[342134429,1731499840938,-506.49467832,0.00019797,2]
[342134431,1731499840953,-1692.17,0.00019797,2]
[342134433,1731499840975,-500.0,0.00019797,2]
[342134435,1731499840984,-500.0,0.00019797,2]
[342134437,1731499840995,-500.0,0.00019797,2]
[342134438,1731499841004,-500.0,0.00019797,2]
[342134440,1731499841014,-500.0,0.00019797,2]
[342134443,1731499841024,-516.56079739,0.00019797,2]
[342134445,1731499841034,-213.3694193,0.00019797,2]
[342134457,1731499841145,-502.32475462,0.00019797,2]
[342134459,1731499841155,-503.18661345,0.00019797,2]
[342134461,1731499841164,-500.0,0.00019797,2]
[342134463,1731499841174,-500.0,0.00019797,2]
[342134465,1731499841183,-518.5026607,0.00019797,2]
[342134467,1731499841193,-500.0,0.00019797,2]
[342134469,1731499841203,-502.13834298,0.00019797,2]
[342134471,1731499841212,-523.29615891,0.00019797,2]
[342134473,1731499841222,-500.0,0.00019797,2]
[342134475,1731499841231,-500.0,0.00019797,2]
[342134477,1731499841241,-504.29278553,0.00019797,2]
[342134479,1731499841250,-500.0,0.00019797,2]
[342134481,1731499841260,-500.0,0.00019797,2]
[342134483,1731499841269,-500.0,0.00019797,2]
[342134485,1731499841279,-500.0,0.00019797,2]
[342134487,1731499841288,-500.0,0.00019797,2]
[342134489,1731499841298,-500.0,0.00019797,2]
[342134491,1731499841308,-398.14236685,0.00019797,2]
[342134493,1731499841317,-500.0,0.00019797,2]
[342134495,1731499841327,-500.0,0.00019797,2]
[342134497,1731499841336,-1603.1,0.00019797,2]
[342134499,1731499841346,-626.41,0.00019797,2]
[342134501,1731499841356,-500.0,0.00019797,2]
[342134503,1731499841365,-500.0,0.00019797,2]
[342134505,1731499841375,-500.0,0.00019797,2]
[342134507,1731499841388,-564.51,0.00019797,2]
[342134509,1731499841397,-500.0,0.00019797,2]
[342134511,1731499841407,-177.40388245,0.00019797,2]
[342134513,1731499841417,-500.0,0.00019797,2]
[342134515,1731499841427,-1340.73,0.00019797,2]
[342134517,1731499841436,-500.0,0.00019797,2]
[342134519,1731499841446,-3026.71,0.00019797,2]
[342134521,1731499841456,-3026.71,0.00019797,2]
[342134523,1731499841483,-3026.71,0.00019797,2]
[342134525,1731499841492,-500.0,0.00019797,2]
[342134527,1731499841501,-500.0,0.00019797,2]
[342134529,1731499841510,-500.0,0.00019797,2]
[342134531,1731499841520,-500.0,0.00019797,2]
[342134533,1731499841529,-500.0,0.00019797,2]
[342134535,1731499841538,-500.0,0.00019797,2]
[342134537,1731499841548,-500.0,0.00019797,2]
[342134539,1731499841557,-318.17533087,0.00019797,2]
[342134541,1731499841567,-500.0,0.00019797,2]
[342134543,1731499841576,-500.0,0.00019797,2]
[342134545,1731499841586,-546.36,0.00019797,2]
[342134547,1731499841595,-500.0,0.00019797,2]
[342134549,1731499841605,-500.0,0.00019797,2]
[342134551,1731499841614,-500.0,0.00019797,2]
[342134553,1731499841623,-500.0,0.00019797,2]
[342134555,1731499841632,-500.0,0.00019797,2]
[342134557,1731499841642,-537.55,0.00019797,2]
[342134559,1731499841651,-500.0,0.00019797,2]
[342134561,1731499841660,-500.0,0.00019797,2]
[342134563,1731499841669,-500.0,0.00019797,2]
[342134565,1731499841679,-500.0,0.00019797,2]
[342134567,1731499841688,-500.0,0.00019797,2]
[342134569,1731499841698,-500.0,0.00019797,2]
[342134571,1731499841707,-500.0,0.00019797,2]
[342134573,1731499841716,-500.0,0.00019797,2]
[342134575,1731499841725,-500.0,0.00019797,2]
[342134577,1731499841735,-500.0,0.00019797,2]
[342134579,1731499841744,-500.0,0.00019797,2]
[342134581,1731499841753,-500.0,0.00019797,2]
[342134583,1731499841762,-500.0,0.00019797,2]
[342134585,1731499841771,-500.0,0.00019797,2]
[342134587,1731499841780,-500.0,0.00019797,2]
[342134589,1731499841789,-500.0,0.00019797,2]
[342134591,1731499841798,-524.44555127,0.00019797,2]
[342134593,1731499841808,-500.0,0.00019797,2]
[342134595,1731499841817,-877.96,0.00019797,2]
[342134597,1731499841826,-500.0,0.00019797,2]
[342134599,1731499841835,-541.14,0.00019797,2]
[342134601,1731499841844,-514.15229962,0.00019797,2]
[342134603,1731499841853,-500.0,0.00019797,2]
[342134605,1731499841863,-500.0,0.00019797,2]
[342134607,1731499841872,-500.0,0.00019797,2]
[342134609,1731499841882,-501.05956843,0.00019797,2]
[342134611,1731499841891,-508.64972498,0.00019797,2]
[342134613,1731499841900,-412.38746949,0.00019797,2]
[342134615,1731499841909,-500.0,0.00019797,2]
[342134617,1731499841918,-191.00063822,0.00019797,2]
[342134619,1731499841927,-419.27804926,0.00019797,2]
[342134621,1731499841936,-176.16120942,0.00019797,2]
[342134623,1731499841945,-174.10330271,0.00019797,2]
[342134625,1731499841954,-389.45536929,0.00019797,2]
[342134627,1731499841968,-500.0,0.00019798,2]
[342134629,1731499841977,-831.42,0.00019798,2]
[342134630,1731499841991,-500.0,0.00019798,2]
[342134633,1731499842001,-500.0,0.00019798,2]
[342134634,1731499842010,-500.0,0.00019798,2]
[342134636,1731499842019,-1340.73,0.00019798,2]
[342134638,1731499842029,-3026.71,0.00019798,2]
[342134639,1731499842038,-3026.71,0.00019798,2]
[342134640,1731499842048,-500.0,0.00019798,2]
[342134641,1731499842057,-2139.54,0.00019798,2]
[342134642,1731499842066,-1045.64,0.00019798,2]
[342134643,1731499842076,-500.0,0.00019798,2]
[342134644,1731499842085,-500.0,0.00019798,2]
[342134645,1731499842094,-500.0,0.00019798,2]
[342134646,1731499842104,-1169.27083333,0.0002,2]
[342134647,1731499842113,-784.96,0.0002007,2]
[342134648,1731499842122,-500.0,0.0002007,2]
[342134649,1731499842132,-509.31225723,0.0002007,2]
[342134650,1731499842141,-500.0,0.0002007,2]
[342134651,1731499842151,-500.0,0.0002007,2]
[342134652,1731499842160,-6930.32,0.0002007,2]
[342134653,1731499842169,-500.0,0.0002007,2]
[342134654,1731499842178,-1605.83,0.0002007,2]
[342134655,1731499842188,-1070.28,0.0002007,2]
[342134656,1731499842197,-3026.71,0.0002007,2]
[342134657,1731499842206,-500.0,0.0002007,2]
[342134658,1731499842224,-500.0,0.0002007,2]
[342134659,1731499842234,-214.98024197,0.0002007,2]
[342134660,1731499842244,-1111.56,0.0002007,2]
[342134661,1731499842253,-500.0,0.0002007,2]
[342134662,1731499842263,-500.0,0.0002007,2]
[342134663,1731499842272,-500.0,0.0002007,2]
[342134664,1731499842282,-1195.06,0.0002007,2]
[342134666,1731499842291,-500.0,0.0002007,2]
[342134667,1731499842300,-500.0,0.00020071,2]
[342134668,1731499842309,-500.0,0.00020071,2]
[342134669,1731499842319,-500.0,0.00020071,2]
[342134670,1731499842328,-500.0,0.00020071,2]
[342134672,1731499842338,-500.0,0.00020071,2]
[342134675,1731499842347,-503.30909024,0.00020071,2]
[342134677,1731499842357,-500.0,0.00020071,2]
[342134678,1731499842367,-500.0,0.00020071,2]
[342134680,1731499842377,-500.0,0.00020071,2]
[342134682,1731499842390,-500.0,0.00020071,2]
[342134684,1731499842400,-500.0,0.00020071,2]
[342134686,1731499842409,-507.45574453,0.00020071,2]
[342134688,1731499842419,-500.0,0.00020071,2]
[342134690,1731499842429,-500.0,0.00020071,2]
[342134692,1731499842439,-503.37249125,0.00020071,2]
[342134694,1731499842448,-500.0,0.00020071,2]
[342134696,1731499842457,-500.0,0.00020071,2]
[342134698,1731499842479,-500.0,0.00020071,2]
[342134700,1731499842489,-500.0,0.00020071,2]
[342134702,1731499842498,-500.0,0.00020071,2]
[342134704,1731499842507,-500.0,0.00020071,2]
[342134706,1731499842516,-500.0,0.00020071,2]
[342134708,1731499842525,-500.0,0.00020071,2]
[342134710,1731499842534,-500.0,0.00020071,2]
[342134712,1731499842543,-500.0,0.00020071,2]
[342134714,1731499842552,-500.0,0.00020071,2]
[342134716,1731499842562,-500.0,0.00020071,2]
[342134718,1731499842571,-500.0,0.00020071,2]
[342134720,1731499842580,-500.0,0.00020071,2]
[342134722,1731499842589,-500.0,0.00020071,2]
[342134724,1731499842598,-500.0,0.00020071,2]
[342134726,1731499842607,-500.0,0.00020071,2]
[342134728,1731499842616,-500.0,0.00020071,2]
[342134730,1731499842625,-417.73190208,0.00020071,2]
[342134732,1731499842635,-500.0,0.00020071,2]
[342134734,1731499842645,-500.0,0.00020071,2]
[342134736,1731499842654,-500.0,0.00020071,2]
[342134738,1731499842664,-500.0,0.00020071,2]
[342134740,1731499842673,-533.19242907,0.00020071,2]
[342134742,1731499842682,-500.0,0.00020071,2]
[342134744,1731499842691,-500.0,0.00020071,2]
[342134746,1731499842701,-509.58583195,0.00020071,2]
[342134748,1731499842709,-504.86534686,0.00020071,2]
[342134750,1731499842730,-500.0,0.00020071,2]
[342134752,1731499842740,-187.51376281,0.00020071,2]
[342134754,1731499842749,-514.25,0.00020071,2]
[342134756,1731499842759,-500.0,0.00020071,2]
[342134758,1731499842774,-502.62177302,0.00020071,2]
[342134761,1731499842784,-500.0,0.00020071,2]
[342134763,1731499842793,-523.45564614,0.00020071,2]
[342134764,1731499842803,-500.0,0.00020071,2]
[342134766,1731499842812,-500.0,0.00020071,2]
[342134769,1731499842822,-573.5650183,0.00020071,2]
[342134771,1731499842831,-500.0,0.00020071,2]
[342134773,1731499842841,-563.12364774,0.00020071,2]
[342134775,1731499842850,-831.42,0.00020071,2]
[342134776,1731499842859,-831.42,0.00020071,2]
[342134778,1731499842868,-500.0,0.00020071,2]
[342134780,1731499842878,-507.96116622,0.00020071,2]
[342134782,1731499842887,-507.50017489,0.00020071,2]
[342134785,1731499842897,-642.17712563,0.00020071,2]
[342134787,1731499842907,-539.88144106,0.00020071,2]
[342134788,1731499842916,-500.0,0.00020071,2]
[342134791,1731499842926,-516.48516975,0.00020071,2]
[342134792,1731499842935,-507.14476674,0.00020071,2]
[342134794,1731499842944,-524.07931875,0.00020071,2]
[342134796,1731499842953,-500.0,0.00020071,2]
[342134798,1731499842962,-532.92182986,0.00020071,2]
[342134800,1731499842984,-513.88700427,0.00020071,2]
[342134802,1731499842994,-501.69301461,0.00020071,2]
[342134804,1731499843004,-200.0,0.00020071,2]
[342134806,1731499843014,-500.0,0.00020071,2]
[342134808,1731499843023,-502.52629327,0.00020071,2]
[342134811,1731499843033,-500.0,0.00020071,2]
[342134814,1731499843043,-517.35314488,0.00020071,2]
[342134817,1731499843052,-500.0,0.00020071,2]
[342134819,1731499843062,-523.42,0.00020071,2]
[342134821,1731499843072,-500.0,0.00020071,2]
[342134823,1731499843082,-512.0130949,0.00020071,2]
[342134825,1731499843091,-500.0,0.00020071,2]
[342134827,1731499843100,-500.0,0.00020071,2]
[342134829,1731499843110,-500.0,0.00020071,2]
[342134831,1731499843120,-512.55978525,0.00020071,2]
[342134833,1731499843129,-500.0,0.00020071,2]
[342134835,1731499843139,-500.0,0.00020071,2]
[342134845,1731499843148,-500.0,0.00020071,2]
[342134847,1731499843253,-500.0,0.00020071,2]
[342134849,1731499843262,-500.0,0.00020071,2]
[342134851,1731499843272,-500.0,0.00020071,2]
[342134853,1731499843281,-274.5072027,0.00020071,2]
[342134855,1731499843291,-700.85,0.00020071,2]
[342134857,1731499843300,-500.0,0.00020071,2]
[342134859,1731499843309,-500.0,0.00020071,2]
[342134861,1731499843320,-500.0,0.00020071,2]
[342134863,1731499843329,-500.0,0.00020071,2]
[342134865,1731499843339,-500.0,0.00020071,2]
[342134867,1731499843348,-500.0,0.00020071,2]
[342134869,1731499843357,-500.0,0.00020071,2]
[342134871,1731499843367,-500.0,0.00020071,2]
[342134873,1731499843376,-500.0,0.00020071,2]
[342134875,1731499843389,-500.0,0.00020071,2]
[342134877,1731499843399,-362.45833225,0.00020071,2]
[342134879,1731499843408,-500.0,0.00020071,2]
[342134881,1731499843419,-500.0,0.00020071,2]
[342134883,1731499843428,-500.0,0.00020071,2]
[342134884,1731499843437,-500.0,0.00020071,2]
[342134886,1731499843446,-500.0,0.00020071,2]
[342134889,1731499843457,-500.0,0.00020071,2]
[342134890,1731499843476,-538.6112871,0.00020071,2]
[342134893,1731499843485,-500.0,0.00020071,2]
[342134895,1731499843494,-500.0,0.00020071,2]
[342134896,1731499843503,-500.0,0.00020071,2]
[342134898,1731499843512,-500.0,0.00020071,2]
[342134900,1731499843522,-500.0,0.00020071,2]
[342134902,1731499843531,-601.72078378,0.00020071,2]
[342134904,1731499843541,-500.0,0.00020071,2]
[342134906,1731499843550,-500.0,0.00020071,2]
[342134908,1731499843560,-500.0,0.00020071,2]
[342134910,1731499843569,-503.59590613,0.00020071,2]
[342134912,1731499843579,-500.0,0.00020071,2]
[342134914,1731499843591,-500.0,0.00020071,2]
[342134916,1731499843601,-500.0,0.00020071,2]
[342134918,1731499843610,-513.6912614,0.00020071,2]
[342134920,1731499843619,-500.0,0.00020071,2]
[342134922,1731499843629,-310.41214446,0.00020071,2]
[342134924,1731499843638,-500.0,0.00020071,2]
[342134926,1731499843648,-2334.98,0.00020071,2]
[342134928,1731499843658,-512.86155048,0.00020071,2]
[342134930,1731499843667,-500.0,0.00020071,2]
[342134933,1731499843677,-500.0,0.00020071,2]
[342134935,1731499843686,-500.0,0.00020071,2]
[342134937,1731499843696,-500.0,0.00020071,2]
[342134939,1731499843705,-500.0,0.00020071,2]
[342134940,1731499843724,-500.0,0.00020071,2]
[342134942,1731499843733,-565.83,0.00020071,2]
[342134944,1731499843743,-500.0,0.00020071,2]
[342134946,1731499843752,-500.0,0.00020071,2]
[342134948,1731499843761,-541.02558495,0.00020071,2]
[342134950,1731499843770,-500.0,0.00020071,2]
[342134952,1731499843779,-500.0,0.00020071,2]
[342134954,1731499843788,-500.0,0.00020071,2]
[342134957,1731499843797,-500.0,0.00020071,2]
[342134959,1731499843807,-322.33253439,0.00020071,2]
[342134961,1731499843816,-590.92,0.00020071,2]
[342134963,1731499843825,-523.27765768,0.00020071,2]
[342134965,1731499843834,-500.0,0.00020071,2]
[342134967,1731499843844,-783.61,0.00020071,2]
[342134969,1731499843853,-500.0,0.00020071,2]
[342134971,1731499843861,-500.0,0.00020071,2]
[342134973,1731499843875,-500.0,0.00020071,2]
[342134974,1731499843895,-507.9892145,0.00020071,2]
[342134976,1731499843911,-509.53612058,0.00020071,2]
[342134979,1731499843922,-3561.14,0.00020071,2]
[342134981,1731499843932,-500.0,0.00020071,2]
[342134983,1731499843941,-500.0,0.00020071,2]
[342134985,1731499843951,-500.0,0.00020071,2]
[342134987,1731499843960,-500.0,0.00020071,2]
[342134989,1731499843983,-541.30382673,0.00020071,2]
[342134991,1731499843992,-1692.17,0.00020071,2]
[342134993,1731499844001,-500.0,0.00020071,2]
[342134995,1731499844010,-500.0,0.00020071,2]
[342134997,1731499844019,-500.0,0.00020071,2]
[342134999,1731499844028,-215.22311596,0.00020071,2]
[342135001,1731499844038,-500.0,0.00020071,2]
[342135003,1731499844047,-500.0,0.00020071,2]
[342135005,1731499844056,-500.0,0.00020071,2]
[342135007,1731499844065,-500.0,0.00020071,2]
[342135009,1731499844075,-500.0,0.00020071,2]
[342135011,1731499844084,-515.2436355,0.00020071,2]
[342135013,1731499844093,-500.0,0.00020071,2]
[342135015,1731499844103,-500.0,0.00020071,2]
[342135017,1731499844113,-500.0,0.00020071,2]
[342135019,1731499844122,-500.0,0.00020071,2]
[342135021,1731499844132,-540.89054792,0.00020071,2]
[342135023,1731499844140,-500.0,0.00020071,2]
[342135025,1731499844150,-500.0,0.00020071,2]
[342135027,1731499844159,-500.0,0.00020071,2]
[342135029,1731499844168,-1603.1,0.00020071,2]
[342135031,1731499844177,-626.41,0.00020071,2]
[342135033,1731499844187,-500.0,0.00020071,2]
[342135035,1731499844196,-500.0,0.00020071,2]
[342135037,1731499844205,-520.32683528,0.00020071,2]
[342135039,1731499844220,-564.51,0.00020071,2]
[342135041,1731499844229,-500.0,0.00020071,2]
[342135043,1731499844238,-500.0,0.00020071,2]
[342135045,1731499844248,-500.0,0.00020071,2]
[342135047,1731499844258,-1340.73,0.00020071,2]
[342135049,1731499844268,-1340.73,0.00020071,2]
[342135051,1731499844277,-3026.71,0.00020071,2]
[342135053,1731499844287,-500.0,0.00020071,2]
[342135055,1731499844296,-3026.71,0.00020071,2]
[342135057,1731499844305,-3026.71,0.00020071,2]
[342135059,1731499844314,-500.0,0.00020071,2]
[342135061,1731499844323,-500.0,0.00020071,2]
[342135062,1731499844333,-500.0,0.00020071,2]
[342135064,1731499844342,-500.0,0.00020071,2]
[342135067,1731499844352,-500.0,0.00020071,2]
[342135069,1731499844362,-500.0,0.00020071,2]
[342135070,1731499844371,-500.0,0.00020071,2]
[342135073,1731499844384,-500.0,0.00020071,2]